[Event "Titled Tuesday Blitz February 21 Early 2023"]
[White "Alex_Sahakyan2006"]
[Black "Avazkhonov, Alikhon"]
[BlackFideId "14208504"]
[WhiteElo "2664"]
[BlackElo "1538"]
[Result "1-0"]
[Round "01"]
[TimeControl "180+2"]
[Date "2023.02.21"]
[WhiteClock "0:00:16"]
[BlackClock "0:00:01"]

1. e4 {[%clk 0:02:58]}  c5 {[%clk 0:02:52]} 2. Nc3 {[%clk 0:02:56]}  d6 {[%clk 0:02:49]} 3. Nf3 {[%clk 0:02:51]}  Nf6 {[%clk 0:02:49]} 4. e5 {[%clk 0:02:51]}  dxe5 {[%clk 0:02:49]} 5. Nxe5 {[%clk 0:02:51]}  a6 {[%clk 0:02:50]} 6. a4 {[%clk 0:02:49]}  Qc7 {[%clk 0:02:38]} 7. d4 {[%clk 0:02:48]}  e6 {[%clk 0:02:22]} 8. Be2 {[%clk 0:02:23]}  cxd4 {[%clk 0:02:09]} 9. Qxd4 {[%clk 0:02:24]}  Bc5 {[%clk 0:02:10]} 10. Qf4 {[%clk 0:02:24]}  Bd6 {[%clk 0:01:55]} 11. O-O {[%clk 0:01:24]}  Bxe5 {[%clk 0:01:44]} 12. Qh4 {[%clk 0:01:24]}  Nc6 {[%clk 0:01:42]} 13. Bd3 {[%clk 0:01:23]}  Bd7 {[%clk 0:01:32]} 14. Be3 {[%clk 0:01:16]}  O-O {[%clk 0:01:10]} 15. Bg5 {[%clk 0:01:16]}  Rfc8 {[%clk 0:00:23]} 16. Rae1 {[%clk 0:01:04]}  h6 {[%clk 0:00:15]} 17. Bxh6 {[%clk 0:01:03]}  gxh6 {[%clk 0:00:13]} 18. Qxh6 {[%clk 0:01:04]}  Bxh2+ {[%clk 0:00:12]} 19. Kh1 {[%clk 0:01:00]}  Qf4 {[%clk 0:00:12]} 20. Qh3 {[%clk 0:01:00]}  e5 {[%clk 0:00:11]} 21. Qxh2 {[%clk 0:00:57]}  Qxh2+ {[%clk 0:00:11]} 22. Kxh2 {[%clk 0:00:58]}  Nb4 {[%clk 0:00:11]} 23. Be4 {[%clk 0:00:54]}  Nxe4 {[%clk 0:00:10]} 24. Rxe4 {[%clk 0:00:55]}  Nxc2 {[%clk 0:00:08]} 25. Rd1 {[%clk 0:00:52]}  Be6 {[%clk 0:00:04]} 26. Rxe5 {[%clk 0:00:50]}  Rc4 {[%clk 0:00:04]} 27. f3 {[%clk 0:00:44]}  Nb4 {[%clk 0:00:04]} 28. Kg3 {[%clk 0:00:42]}  Kg7 {[%clk 0:00:03]} 29. Ne4 {[%clk 0:00:41]}  Nc6 {[%clk 0:00:02]} 30. Rg5+ {[%clk 0:00:39]}  Kf8 {[%clk 0:00:02]} 31. Nc5 {[%clk 0:00:31]}  Rb4 {[%clk 0:00:01]} 32. Nxe6+ {[%clk 0:00:28]}  fxe6 {[%clk 0:00:01]} 33. Rd7 {[%clk 0:00:29]}  Ne7 {[%clk 0:00:01]} 34. Rh5 {[%clk 0:00:26]}  Ke8 {[%clk 0:00:02]} 35. Rd2 {[%clk 0:00:19]}  Rc8 {[%clk 0:00:01]} 36. Rh7 {[%clk 0:00:18]}  Kf8 {[%clk 0:00:01]} 37. Rd7 {[%clk 0:00:17]}  Ng8 {[%clk 0:00:01]} 38. Rdf7+ {[%clk 0:00:15]}  Ke8 {[%clk 0:00:01]} 39. Rfg7 {[%clk 0:00:16]}  Nf6 {[%clk 0:00:01]} 40. Rh8+ {[%clk 0:00:16]} 1-0


[Site "https://www.chess.com"]

[Event "Titled Tuesday Blitz February 21 Early 2023"]
[White "Coelho, Ramyres Santana"]
[Black "Dimitrov, Atanas"]
[WhiteFideId "2120690"]
[BlackFideId "2901315"]
[WhiteElo "1981"]
[BlackElo "2269"]
[Result "0-1"]
[Round "01"]
[TimeControl "180+2"]
[Date "2023.02.21"]
[WhiteClock "0:00:14"]
[BlackClock "0:00:21"]

1. e4 {[%clk 0:03:00]}  c5 {[%clk 0:02:58]} 2. Nf3 {[%clk 0:02:59]}  d6 {[%clk 0:02:57]} 3. d4 {[%clk 0:02:58]}  cxd4 {[%clk 0:02:58]} 4. Nxd4 {[%clk 0:02:59]}  Nf6 {[%clk 0:02:58]} 5. Nc3 {[%clk 0:03:00]}  g6 {[%clk 0:02:59]} 6. f4 {[%clk 0:03:00]}  Bg7 {[%clk 0:02:58]} 7. e5 {[%clk 0:03:00]}  dxe5 {[%clk 0:02:45]} 8. fxe5 {[%clk 0:03:01]}  Nh5 {[%clk 0:02:43]} 9. Bb5+ {[%clk 0:03:00]}  Bd7 {[%clk 0:02:42]} 10. e6 {[%clk 0:02:57]}  Bxb5 {[%clk 0:02:42]} 11. exf7+ {[%clk 0:02:57]}  Kxf7 {[%clk 0:02:41]} 12. Ncxb5 {[%clk 0:02:54]}  Nc6 {[%clk 0:02:40]} 13. O-O+ {[%clk 0:02:51]}  Nf6 {[%clk 0:02:38]} 14. Nxc6 {[%clk 0:02:37]}  bxc6 {[%clk 0:02:38]} 15. Nd4 {[%clk 0:02:37]}  c5 {[%clk 0:02:36]} 16. Nf3 {[%clk 0:02:29]}  Qxd1 {[%clk 0:02:27]} 17. Ng5+ {[%clk 0:02:21]}  Kg8 {[%clk 0:01:55]} 18. Rxd1 {[%clk 0:02:15]}  Bh6 {[%clk 0:01:53]} 19. Re1 {[%clk 0:01:57]}  Bxg5 {[%clk 0:01:47]} 20. Bxg5 {[%clk 0:01:58]}  Kf7 {[%clk 0:01:47]} 21. Bxf6 {[%clk 0:01:57]}  exf6 {[%clk 0:01:47]} 22. Rad1 {[%clk 0:01:51]}  Rad8 {[%clk 0:01:45]} 23. Kf2 {[%clk 0:01:50]}  Rhe8 {[%clk 0:01:34]} 24. Rxd8 {[%clk 0:01:33]}  Rxd8 {[%clk 0:01:34]} 25. Re2 {[%clk 0:01:30]}  f5 {[%clk 0:01:30]} 26. Ke3 {[%clk 0:01:23]}  Kf6 {[%clk 0:01:29]} 27. Rd2 {[%clk 0:01:23]}  Re8+ {[%clk 0:01:28]} 28. Kf2 {[%clk 0:01:21]}  Re7 {[%clk 0:01:18]} 29. Rd5 {[%clk 0:01:19]}  Rc7 {[%clk 0:01:16]} 30. c4 {[%clk 0:01:19]}  Kg5 {[%clk 0:01:13]} 31. b3 {[%clk 0:01:18]}  Kf4 {[%clk 0:01:12]} 32. g3+ {[%clk 0:01:12]}  Ke4 {[%clk 0:01:12]} 33. h3 {[%clk 0:01:11]}  a5 {[%clk 0:01:09]} 34. Rd8 {[%clk 0:01:00]}  a4 {[%clk 0:01:02]} 35. Rb8 {[%clk 0:00:48]}  axb3 {[%clk 0:00:56]} 36. axb3 {[%clk 0:00:49]}  Ra7 {[%clk 0:00:50]} 37. Re8+ {[%clk 0:00:42]}  Kd4 {[%clk 0:00:50]} 38. Rd8+ {[%clk 0:00:38]}  Kc3 {[%clk 0:00:47]} 39. Rd5 {[%clk 0:00:38]}  Ra5 {[%clk 0:00:47]} 40. Rd7 {[%clk 0:00:38]}  Kxb3 {[%clk 0:00:47]} 41. Rxh7 {[%clk 0:00:38]}  Kxc4 {[%clk 0:00:48]} 42. Rg7 {[%clk 0:00:37]}  Ra6 {[%clk 0:00:48]} 43. Kf3 {[%clk 0:00:35]}  Kd4 {[%clk 0:00:43]} 44. Kf4 {[%clk 0:00:35]}  c4 {[%clk 0:00:44]} 45. Rd7+ {[%clk 0:00:35]}  Kc5 {[%clk 0:00:42]} 46. Kg5 {[%clk 0:00:34]}  c3 {[%clk 0:00:39]} 47. Rd1 {[%clk 0:00:28]}  Kc4 {[%clk 0:00:33]} 48. h4 {[%clk 0:00:28]}  c2 {[%clk 0:00:29]} 49. Rf1 {[%clk 0:00:25]}  Kd3 {[%clk 0:00:25]} 50. h5 {[%clk 0:00:18]}  gxh5 {[%clk 0:00:25]} 51. Kxf5 {[%clk 0:00:16]}  Ra5+ {[%clk 0:00:23]} 52. Kg6 {[%clk 0:00:15]}  Ke2 {[%clk 0:00:21]} 53. Rc1 {[%clk 0:00:15]}  Kd2 {[%clk 0:00:21]} 54. Rh1 {[%clk 0:00:14]}  c1=Q {[%clk 0:00:20]} 55. Rxc1 {[%clk 0:00:15]}  Kxc1 {[%clk 0:00:21]} 56. Kh6 {[%clk 0:00:13]}  Kd2 {[%clk 0:00:21]} 57. g4 {[%clk 0:00:14]}  hxg4 {[%clk 0:00:21]} 0-1


[Site "https://www.chess.com"]

[Event "Titled Tuesday Blitz February 21 Early 2023"]
[White "Mindlin, Alon"]
[Black "Kaganskiy, Gleb"]
[WhiteFideId "2800071"]
[BlackFideId "4132025"]
[WhiteElo "2435"]
[BlackElo "2205"]
[Result "1-0"]
[Round "01"]
[TimeControl "180+2"]
[Date "2023.02.21"]
[WhiteClock "0:01:10"]
[BlackClock "0:00:07"]

1. e4 {[%clk 0:02:59]}  e6 {[%clk 0:02:59]} 2. c4 {[%clk 0:02:58]}  d5 {[%clk 0:02:51]} 3. cxd5 {[%clk 0:02:59]}  exd5 {[%clk 0:02:51]} 4. exd5 {[%clk 0:03:00]}  Nf6 {[%clk 0:02:50]} 5. Nc3 {[%clk 0:02:59]}  Nxd5 {[%clk 0:02:48]} 6. Nf3 {[%clk 0:02:59]}  Be7 {[%clk 0:02:44]} 7. d4 {[%clk 0:02:57]}  O-O {[%clk 0:02:43]} 8. Bd3 {[%clk 0:02:58]}  Nc6 {[%clk 0:02:35]} 9. O-O {[%clk 0:02:53]}  Bg4 {[%clk 0:02:28]} 10. h3 {[%clk 0:02:51]}  Bh5 {[%clk 0:02:22]} 11. Be4 {[%clk 0:02:50]}  Nxc3 {[%clk 0:01:57]} 12. bxc3 {[%clk 0:02:48]}  Bg6 {[%clk 0:01:56]} 13. Bxg6 {[%clk 0:02:38]}  hxg6 {[%clk 0:01:56]} 14. Rb1 {[%clk 0:02:39]}  b6 {[%clk 0:01:55]} 15. Re1 {[%clk 0:02:32]}  Bf6 {[%clk 0:01:45]} 16. Qa4 {[%clk 0:02:25]}  Na5 {[%clk 0:01:40]} 17. Bf4 {[%clk 0:02:21]}  c6 {[%clk 0:01:26]} 18. Be5 {[%clk 0:02:05]}  Qd5 {[%clk 0:01:23]} 19. Nd2 {[%clk 0:02:00]}  Bxe5 {[%clk 0:01:12]} 20. Rxe5 {[%clk 0:01:58]}  Qd6 {[%clk 0:01:11]} 21. Ne4 {[%clk 0:01:56]}  Qd7 {[%clk 0:01:08]} 22. Re1 {[%clk 0:01:40]}  f6 {[%clk 0:01:02]} 23. Nc5 {[%clk 0:01:32]}  bxc5 {[%clk 0:00:58]} 24. Re7 {[%clk 0:01:32]}  Qd8 {[%clk 0:00:53]} 25. Qc2 {[%clk 0:01:28]}  Rf7 {[%clk 0:00:49]} 26. R7e2 {[%clk 0:01:22]}  f5 {[%clk 0:00:45]} 27. Qa4 {[%clk 0:01:18]}  cxd4 {[%clk 0:00:34]} 28. cxd4 {[%clk 0:01:08]}  Nb7 {[%clk 0:00:18]} 29. Qxc6 {[%clk 0:01:08]}  Kh7 {[%clk 0:00:17]} 30. Re8 {[%clk 0:01:07]}  Rc8 {[%clk 0:00:06]} 31. Qxc8 {[%clk 0:01:06]}  Qxc8 {[%clk 0:00:04]} 32. Rxc8 {[%clk 0:01:07]}  Nd6 {[%clk 0:00:04]} 33. Rd8 {[%clk 0:01:07]}  Ne4 {[%clk 0:00:04]} 34. f3 {[%clk 0:01:07]}  Nc3 {[%clk 0:00:04]} 35. Ree8 {[%clk 0:01:07]}  g5 {[%clk 0:00:03]} 36. Rh8+ {[%clk 0:01:07]}  Kg6 {[%clk 0:00:04]} 37. Rd6+ {[%clk 0:01:08]}  Rf6 {[%clk 0:00:04]} 38. Rxf6+ {[%clk 0:01:09]}  Kxf6 {[%clk 0:00:05]} 39. Ra8 {[%clk 0:01:09]}  Nxa2 {[%clk 0:00:05]} 40. Rxa7 {[%clk 0:01:09]}  Nc3 {[%clk 0:00:05]} 41. Kf1 {[%clk 0:01:08]}  Nd5 {[%clk 0:00:05]} 42. Ra6+ {[%clk 0:01:08]}  Kf7 {[%clk 0:00:05]} 43. Ra5 {[%clk 0:01:08]}  Ne3+ {[%clk 0:00:05]} 44. Kf2 {[%clk 0:01:08]}  f4 {[%clk 0:00:06]} 45. Rxg5 {[%clk 0:01:07]}  Kf6 {[%clk 0:00:05]} 46. Re5 {[%clk 0:01:07]}  g5 {[%clk 0:00:05]} 47. Rxe3 {[%clk 0:01:07]}  fxe3+ {[%clk 0:00:06]} 48. Kxe3 {[%clk 0:01:08]}  Ke6 {[%clk 0:00:06]} 49. g3 {[%clk 0:01:08]}  Kd6 {[%clk 0:00:07]} 50. f4 {[%clk 0:01:09]}  gxf4+ {[%clk 0:00:07]} 51. Kxf4 {[%clk 0:01:10]}  Ke6 {[%clk 0:00:07]} 52. h4 {[%clk 0:01:10]} 1-0


[Site "https://www.chess.com"]

[Event "Titled Tuesday Blitz February 21 Early 2023"]
[White "Mogirzan, Matei-Valeriu"]
[Black "Shuvalova, Polina"]
[WhiteFideId "1257455"]
[BlackFideId "24171760"]
[WhiteElo "1813"]
[BlackElo "2484"]
[Result "0-1"]
[Round "01"]
[TimeControl "180+2"]
[Date "2023.02.21"]
[WhiteClock "0:00:05"]
[BlackClock "0:00:01"]

1. e4 {[%clk 0:02:59]}  c6 {[%clk 0:02:58]} 2. d4 {[%clk 0:02:58]}  d5 {[%clk 0:02:59]} 3. Nc3 {[%clk 0:02:58]}  dxe4 {[%clk 0:02:58]} 4. Nxe4 {[%clk 0:02:59]}  Nf6 {[%clk 0:02:59]} 5. Nxf6+ {[%clk 0:02:58]}  exf6 {[%clk 0:03:00]} 6. Nf3 {[%clk 0:02:55]}  Bd6 {[%clk 0:03:00]} 7. Bd3 {[%clk 0:02:55]}  O-O {[%clk 0:02:59]} 8. h4 {[%clk 0:02:55]}  Re8+ {[%clk 0:02:55]} 9. Be3 {[%clk 0:02:52]}  Bg4 {[%clk 0:02:52]} 10. Bxh7+ {[%clk 0:02:43]}  Kxh7 {[%clk 0:02:36]} 11. Ng5+ {[%clk 0:02:43]}  fxg5 {[%clk 0:02:36]} 12. hxg5+ {[%clk 0:02:44]}  Kg8 {[%clk 0:02:33]} 13. Qxg4 {[%clk 0:02:44]}  Nd7 {[%clk 0:01:22]} 14. Qh5 {[%clk 0:02:17]}  Kf8 {[%clk 0:01:20]} 15. g6 {[%clk 0:02:05]}  fxg6 {[%clk 0:00:41]} 16. Qxg6 {[%clk 0:02:05]}  Nf6 {[%clk 0:00:31]} 17. Rh8+ {[%clk 0:01:38]}  Ng8 {[%clk 0:00:30]} 18. O-O-O {[%clk 0:01:25]}  Qf6 {[%clk 0:00:25]} 19. Qh5 {[%clk 0:01:19]}  Qf7 {[%clk 0:00:22]} 20. Qh3 {[%clk 0:01:09]}  Re6 {[%clk 0:00:19]} 21. Rh1 {[%clk 0:01:05]}  Rae8 {[%clk 0:00:19]} 22. Qh4 {[%clk 0:00:59]}  Be7 {[%clk 0:00:14]} 23. Qh7 {[%clk 0:00:54]}  Bf6 {[%clk 0:00:14]} 24. g4 {[%clk 0:00:52]}  Rd6 {[%clk 0:00:12]} 25. g5 {[%clk 0:00:50]}  Bxd4 {[%clk 0:00:11]} 26. g6 {[%clk 0:00:50]}  Qxa2 {[%clk 0:00:10]} 27. c3 {[%clk 0:00:35]}  Bxe3+ {[%clk 0:00:09]} 28. fxe3 {[%clk 0:00:36]}  Qa1+ {[%clk 0:00:05]} 29. Kc2 {[%clk 0:00:36]}  Qa4+ {[%clk 0:00:06]} 30. Kc1 {[%clk 0:00:35]}  Qa1+ {[%clk 0:00:02]} 31. Kc2 {[%clk 0:00:35]}  Qa4+ {[%clk 0:00:03]} 32. Kb1 {[%clk 0:00:32]}  Qe4+ {[%clk 0:00:03]} 33. Ka1 {[%clk 0:00:30]}  Qe6 {[%clk 0:00:03]} 34. Rf1+ {[%clk 0:00:24]}  Ke7 {[%clk 0:00:04]} 35. Rf7+ {[%clk 0:00:20]}  Kd8 {[%clk 0:00:04]} 36. Qh4+ {[%clk 0:00:14]}  Kc8 {[%clk 0:00:04]} 37. Qh1 {[%clk 0:00:12]}  Qxg6 {[%clk 0:00:03]} 38. Rf4 {[%clk 0:00:09]}  Red8 {[%clk 0:00:04]} 39. Rd4 {[%clk 0:00:08]}  Rxd4 {[%clk 0:00:03]} 40. cxd4 {[%clk 0:00:08]}  Nf6 {[%clk 0:00:04]} 41. Rh4 {[%clk 0:00:07]}  Qd3 {[%clk 0:00:04]} 42. Qh3+ {[%clk 0:00:08]}  Kc7 {[%clk 0:00:04]} 43. Qg3+ {[%clk 0:00:07]}  Kb6 {[%clk 0:00:04]} 44. Qxg7 {[%clk 0:00:08]}  Qd1+ {[%clk 0:00:04]} 45. Ka2 {[%clk 0:00:08]}  Qa4+ {[%clk 0:00:04]} 46. Kb1 {[%clk 0:00:08]}  Nd5 {[%clk 0:00:04]} 47. Qg5 {[%clk 0:00:07]}  Qd1+ {[%clk 0:00:04]} 48. Ka2 {[%clk 0:00:07]}  Qa4+ {[%clk 0:00:05]} 49. Kb1 {[%clk 0:00:08]}  Rd7 {[%clk 0:00:03]} 50. e4 {[%clk 0:00:07]}  Qd1+ {[%clk 0:00:03]} 51. Ka2 {[%clk 0:00:07]}  Nb4+ {[%clk 0:00:03]} 52. Ka3 {[%clk 0:00:08]}  Nc2+ {[%clk 0:00:02]} 53. Ka2 {[%clk 0:00:06]}  Nxd4 {[%clk 0:00:02]} 54. Rh5 {[%clk 0:00:05]}  Qa4+ {[%clk 0:00:03]} 55. Kb1 {[%clk 0:00:05]}  Qd1+ {[%clk 0:00:03]} 56. Ka2 {[%clk 0:00:05]}  Qa4+ {[%clk 0:00:02]} 57. Kb1 {[%clk 0:00:05]}  Qb4 {[%clk 0:00:03]} 58. Qe3 {[%clk 0:00:04]}  c5 {[%clk 0:00:02]} 59. Rh6+ {[%clk 0:00:04]}  Kc7 {[%clk 0:00:02]} 60. Qg3+ {[%clk 0:00:05]}  Kc8 {[%clk 0:00:01]} 61. Rh8+ {[%clk 0:00:05]}  Rd8 {[%clk 0:00:02]} 62. Qg4+ {[%clk 0:00:05]}  Kc7 {[%clk 0:00:03]} 63. Qg3+ {[%clk 0:00:05]}  Kc6 {[%clk 0:00:03]} 64. Rxd8 {[%clk 0:00:04]}  Qb3 {[%clk 0:00:03]} 65. Qg6+ {[%clk 0:00:04]}  Kb5 {[%clk 0:00:03]} 66. Qe8+ {[%clk 0:00:03]}  Ka5 {[%clk 0:00:02]} 67. Rxd4 {[%clk 0:00:03]}  cxd4 {[%clk 0:00:01]} 68. Qd8+ {[%clk 0:00:04]}  Qb6 {[%clk 0:00:02]} 69. Qd5+ {[%clk 0:00:04]}  Kb4 {[%clk 0:00:02]} 70. e5 {[%clk 0:00:03]}  Qg6+ {[%clk 0:00:02]} 71. Ka2 {[%clk 0:00:03]}  Qa6+ {[%clk 0:00:02]} 72. Kb1 {[%clk 0:00:03]}  Qd3+ {[%clk 0:00:02]} 73. Ka1 {[%clk 0:00:04]}  Qd1+ {[%clk 0:00:03]} 74. Ka2 {[%clk 0:00:04]}  Qa4+ {[%clk 0:00:04]} 75. Kb1 {[%clk 0:00:05]}  Qd1+ {[%clk 0:00:04]} 76. Ka2 {[%clk 0:00:06]}  d3 {[%clk 0:00:04]} 77. Qd4+ {[%clk 0:00:05]}  Kb5 {[%clk 0:00:04]} 78. Qd5+ {[%clk 0:00:05]}  Ka6 {[%clk 0:00:04]} 79. Qc4+ {[%clk 0:00:05]}  b5 {[%clk 0:00:04]} 80. Qc6+ {[%clk 0:00:05]}  Ka5 {[%clk 0:00:05]} 81. Qc7+ {[%clk 0:00:05]}  Ka6 {[%clk 0:00:04]} 82. Qc6+ {[%clk 0:00:05]}  Ka5 {[%clk 0:00:05]} 83. Qc7+ {[%clk 0:00:04]}  Ka4 {[%clk 0:00:03]} 84. Qc3 {[%clk 0:00:03]}  b4 {[%clk 0:00:01]} 85. Qc6+ {[%clk 0:00:03]}  Ka5 {[%clk 0:00:02]} 86. Qc5+ {[%clk 0:00:03]}  Ka6 {[%clk 0:00:02]} 87. Qc4+ {[%clk 0:00:04]}  Kb6 {[%clk 0:00:03]} 88. Qxb4+ {[%clk 0:00:04]}  Kc6 {[%clk 0:00:03]} 89. Qc4+ {[%clk 0:00:05]}  Kb6 {[%clk 0:00:04]} 90. Qd4+ {[%clk 0:00:05]}  Kc6 {[%clk 0:00:04]} 91. e6 {[%clk 0:00:05]}  d2 {[%clk 0:00:04]} 92. e7 {[%clk 0:00:05]}  Qe1 {[%clk 0:00:02]} 93. Qa4+ {[%clk 0:00:04]}  Kd6 {[%clk 0:00:01]} 94. e8=Q {[%clk 0:00:04]}  Qxe8 {[%clk 0:00:02]} 95. Qxe8 {[%clk 0:00:04]}  Kc7 {[%clk 0:00:01]} 96. Qd8+ {[%clk 0:00:05]}  Kxd8 {[%clk 0:00:01]} 0-1


[Site "https://www.chess.com"]

[Event "Titled Tuesday Blitz February 21 Early 2023"]
[White "Belozerov, Andrei"]
[Black "Topalov, Aleksandar"]
[WhiteFideId "4120213"]
[BlackFideId "925659"]
[WhiteElo "2461"]
[BlackElo "2233"]
[Result "1/2-1/2"]
[Round "01"]
[TimeControl "180+2"]
[Date "2023.02.21"]
[WhiteClock "0:00:21"]
[BlackClock "0:00:44"]

1. e4 {[%clk 0:02:57]}  e6 {[%clk 0:02:56]} 2. d4 {[%clk 0:02:57]}  d5 {[%clk 0:02:56]} 3. Nd2 {[%clk 0:02:57]}  Nf6 {[%clk 0:02:55]} 4. e5 {[%clk 0:02:57]}  Ng8 {[%clk 0:02:54]} 5. Bd3 {[%clk 0:02:57]}  Ne7 {[%clk 0:02:54]} 6. c3 {[%clk 0:02:48]}  Qd7 {[%clk 0:02:54]} 7. f4 {[%clk 0:02:46]}  h5 {[%clk 0:02:54]} 8. Ndf3 {[%clk 0:02:43]}  g6 {[%clk 0:02:54]} 9. Ne2 {[%clk 0:02:43]}  b6 {[%clk 0:02:54]} 10. O-O {[%clk 0:02:43]}  Ba6 {[%clk 0:02:54]} 11. Bxa6 {[%clk 0:02:38]}  Nxa6 {[%clk 0:02:54]} 12. Be3 {[%clk 0:02:38]}  Nf5 {[%clk 0:02:52]} 13. Bf2 {[%clk 0:02:37]}  Be7 {[%clk 0:02:51]} 14. a4 {[%clk 0:02:34]}  c5 {[%clk 0:02:49]} 15. Qb3 {[%clk 0:01:58]}  c4 {[%clk 0:02:47]} 16. Qc2 {[%clk 0:01:51]}  Nb8 {[%clk 0:02:47]} 17. b3 {[%clk 0:01:49]}  cxb3 {[%clk 0:02:46]} 18. Qxb3 {[%clk 0:01:49]}  Nc6 {[%clk 0:02:46]} 19. Nd2 {[%clk 0:01:45]}  Na5 {[%clk 0:02:44]} 20. Qa2 {[%clk 0:01:41]}  Rc8 {[%clk 0:02:44]} 21. Rac1 {[%clk 0:01:38]}  Nc4 {[%clk 0:02:42]} 22. Rfd1 {[%clk 0:01:15]}  O-O {[%clk 0:02:41]} 23. g3 {[%clk 0:01:05]}  Nxd2 {[%clk 0:02:38]} 24. Rxd2 {[%clk 0:01:05]}  Rc4 {[%clk 0:02:38]} 25. Ra1 {[%clk 0:01:00]}  Rfc8 {[%clk 0:02:31]} 26. Qb3 {[%clk 0:00:59]}  Qc6 {[%clk 0:02:15]} 27. h3 {[%clk 0:00:54]}  a6 {[%clk 0:01:58]} 28. Rb2 {[%clk 0:00:51]}  Rb8 {[%clk 0:01:56]} 29. Qa2 {[%clk 0:00:44]}  b5 {[%clk 0:01:22]} 30. axb5 {[%clk 0:00:44]}  Rxb5 {[%clk 0:01:21]} 31. Rxb5 {[%clk 0:00:42]}  axb5 {[%clk 0:01:21]} 32. Qa8+ {[%clk 0:00:40]}  Qxa8 {[%clk 0:01:18]} 33. Rxa8+ {[%clk 0:00:41]}  Kg7 {[%clk 0:01:18]} 34. Rb8 {[%clk 0:00:41]}  b4 {[%clk 0:01:18]} 35. cxb4 {[%clk 0:00:41]}  Rxb4 {[%clk 0:01:18]} 36. Rxb4 {[%clk 0:00:40]}  Bxb4 {[%clk 0:01:17]} 37. Kg2 {[%clk 0:00:40]}  Bd2 {[%clk 0:01:16]} 38. g4 {[%clk 0:00:38]}  hxg4 {[%clk 0:01:15]} 39. hxg4 {[%clk 0:00:38]}  Ne3+ {[%clk 0:01:15]} 40. Bxe3 {[%clk 0:00:35]}  Bxe3 {[%clk 0:01:15]} 41. Kf3 {[%clk 0:00:36]}  Bd2 {[%clk 0:01:15]} 42. Kg3 {[%clk 0:00:33]}  Be3 {[%clk 0:01:13]} 43. Kf3 {[%clk 0:00:33]}  Bd2 {[%clk 0:01:13]} 44. Kf2 {[%clk 0:00:33]}  f6 {[%clk 0:01:08]} 45. exf6+ {[%clk 0:00:32]}  Kxf6 {[%clk 0:01:08]} 46. Kf3 {[%clk 0:00:32]}  Kf7 {[%clk 0:01:07]} 47. Ng3 {[%clk 0:00:29]}  Bc3 {[%clk 0:01:04]} 48. Ke3 {[%clk 0:00:28]}  Bb2 {[%clk 0:01:02]} 49. Ne2 {[%clk 0:00:28]}  Ke7 {[%clk 0:00:57]} 50. Ng1 {[%clk 0:00:27]}  Bc1+ {[%clk 0:00:56]} 51. Kf3 {[%clk 0:00:27]}  Bb2 {[%clk 0:00:56]} 52. Ne2 {[%clk 0:00:24]}  Kf6 {[%clk 0:00:52]} 53. Ke3 {[%clk 0:00:23]}  Ke7 {[%clk 0:00:52]} 54. Kd3 {[%clk 0:00:22]}  Kf6 {[%clk 0:00:48]} 55. Ke3 {[%clk 0:00:21]}  Ke7 {[%clk 0:00:44]} 1/2-1/2


[Site "https://www.chess.com"]

[Event "Titled Tuesday Blitz February 21 Early 2023"]
[White "Jimenez, Joaquin"]
[Black "Rosen, Eric"]
[WhiteFideId "109860"]
[BlackFideId "2032562"]
[WhiteElo "2195"]
[BlackElo "2349"]
[Result "0-1"]
[Round "01"]
[TimeControl "180+2"]
[Date "2023.02.21"]
[WhiteClock "0:00:07"]
[BlackClock "0:00:08"]

1. Nf3 {[%clk 0:02:58]}  d5 {[%clk 0:02:55]} 2. g3 {[%clk 0:02:56]}  Nf6 {[%clk 0:02:55]} 3. Bg2 {[%clk 0:02:55]}  e6 {[%clk 0:02:56]} 4. O-O {[%clk 0:02:55]}  b6 {[%clk 0:02:49]} 5. b3 {[%clk 0:02:50]}  Bb7 {[%clk 0:02:49]} 6. Bb2 {[%clk 0:02:49]}  Nbd7 {[%clk 0:02:49]} 7. d4 {[%clk 0:02:45]}  Bd6 {[%clk 0:02:47]} 8. c4 {[%clk 0:02:40]}  O-O {[%clk 0:02:45]} 9. Ne5 {[%clk 0:02:31]}  Qe7 {[%clk 0:02:27]} 10. Nd2 {[%clk 0:02:22]}  c5 {[%clk 0:02:20]} 11. cxd5 {[%clk 0:02:08]}  exd5 {[%clk 0:02:12]} 12. Ndf3 {[%clk 0:02:04]}  Rfe8 {[%clk 0:02:03]} 13. e3 {[%clk 0:01:59]}  Rac8 {[%clk 0:02:01]} 14. Rc1 {[%clk 0:01:50]}  Ne4 {[%clk 0:01:36]} 15. Nxd7 {[%clk 0:01:44]}  Qxd7 {[%clk 0:01:35]} 16. Nd2 {[%clk 0:01:42]}  Nxd2 {[%clk 0:01:07]} 17. Qxd2 {[%clk 0:01:39]}  c4 {[%clk 0:01:08]} 18. e4 {[%clk 0:01:21]}  c3 {[%clk 0:00:42]} 19. Rxc3 {[%clk 0:01:15]}  Bb4 {[%clk 0:00:37]} 20. e5 {[%clk 0:01:11]}  Bxc3 {[%clk 0:00:35]} 21. Bxc3 {[%clk 0:01:10]}  Rc7 {[%clk 0:00:27]} 22. Bb4 {[%clk 0:01:03]}  Rec8 {[%clk 0:00:24]} 23. Qf4 {[%clk 0:00:51]}  Rc2 {[%clk 0:00:22]} 24. a3 {[%clk 0:00:50]}  a5 {[%clk 0:00:21]} 25. Bd6 {[%clk 0:00:49]}  Qe6 {[%clk 0:00:19]} 26. h4 {[%clk 0:00:44]}  Ba6 {[%clk 0:00:19]} 27. Re1 {[%clk 0:00:40]}  Bd3 {[%clk 0:00:19]} 28. Kh2 {[%clk 0:00:38]}  Re8 {[%clk 0:00:10]} 29. Re3 {[%clk 0:00:36]}  Bf5 {[%clk 0:00:07]} 30. b4 {[%clk 0:00:21]}  a4 {[%clk 0:00:06]} 31. b5 {[%clk 0:00:20]}  h6 {[%clk 0:00:06]} 32. Qf3 {[%clk 0:00:14]}  Be4 {[%clk 0:00:06]} 33. Rxe4 {[%clk 0:00:13]}  dxe4 {[%clk 0:00:07]} 34. Qxe4 {[%clk 0:00:14]}  Rxf2 {[%clk 0:00:07]} 35. d5 {[%clk 0:00:13]}  Qg6 {[%clk 0:00:07]} 36. Qe3 {[%clk 0:00:13]}  Qc2 {[%clk 0:00:06]} 37. Kh3 {[%clk 0:00:08]}  Rxg2 {[%clk 0:00:07]} 38. e6 {[%clk 0:00:08]}  Rh2+ {[%clk 0:00:07]} 39. Kg4 {[%clk 0:00:07]}  Qg6+ {[%clk 0:00:08]} 0-1


[Site "https://www.chess.com"]